bitfinex-derivatives/quotes_ETHF0:USTF0_20250816
["timestamp","ask_amount","ask_price","bid_price","bid_amount"]
[1755375350349,0.7995,4428.1,4428.0,4.5861]
[1755375350654,1.2796,4428.4,4428.3,0.5809]
[1755375350958,1.4483,4428.4,4428.3,1.3893]
[1755375354057,0.5742,4428.5,4428.4,0.9835]
[1755375354356,1.199,4428.5,4428.4,1.3893]
[1755375355357,1.4483,4428.5,4428.4,1.3893]
[1755375355753,1.199,4428.5,4428.4,1.3893]
[1755375356056,1.4483,4428.5,4428.4,1.3893]
[1755375357258,1.199,4428.5,4428.4,1.3893]
[1755375358560,1.4483,4428.5,4428.4,1.1482]
[1755375359954,0.9515,4428.5,4428.4,1.3893]
[1755375360261,1.4483,4428.5,4428.4,1.3893]
[1755375364257,0.5742,4428.1,4428.0,3.5476]
[1755375364452,1.4483,4428.1,4428.0,4.5971]
[1755375365161,3.2078,4429.3,4428.0,4.5971]
[1755375365359,0.5742,4428.2,4428.1,1.3893]
[1755375366060,1.4483,4428.2,4428.1,1.3893]
[1755375368767,1.4483,4428.2,4428.0,3.2078]
[1755375368972,1.4483,4428.1,4428.0,4.0578]
[1755375369776,1.4483,4428.1,4428.0,4.5971]
[1755375372669,1.4483,4428.1,4428.0,4.356]
[1755375373278,1.4483,4428.1,4428.0,3.5476]
[1755375373872,1.65117608,4428.1,4428.0,3.8065]
[1755375374080,1.65117608,4428.1,4428.0,4.0578]
[1755375374386,1.65117608,4428.1,4428.0,4.356]
[1755375375682,1.65117608,4428.1,4428.0,3.2078]
[1755375376185,1.65117608,4428.1,4428.0,3.8931]
[1755375376784,1.65117608,4428.1,4428.0,4.356]
[1755375377380,1.65117608,4428.1,4428.0,4.0578]
[1755375377993,1.65117608,4428.1,4428.0,3.8065]
[1755375378285,1.65117608,4428.1,4428.0,4.356]
[1755375378486,1.65117608,4428.1,4428.0,4.5971]
[1755375379986,0.20287608,4428.1,4428.0,4.5968]
[1755375380685,1.45947608,4428.1,4428.0,4.5968]
[1755375380884,1.63287608,4428.1,4428.0,4.5968]
[1755375381688,0.20287608,4428.1,4428.0,4.5968]
[1755375383788,0.3592,4428.7,4428.0,3.7893]
[1755375383988,1.27372613,4428.6,4428.5,1.0899]
[1755375384186,1.63292613,4428.6,4428.5,1.389]
[1755375384480,0.62192613,4428.6,4428.5,0.5743]
[1755375384683,1.1865,4429.4,4429.3,0.1692]
[1755375384889,1.43,4429.4,4429.3,1.1366]
[1755375385480,1.43,4429.4,4429.3,0.8375]
[1755375385794,0.5817,4429.2,4429.1,0.8375]
[1755375385985,1.43,4429.2,4429.1,0.8375]
[1755375386883,1.43,4429.2,4429.1,1.389]
[1755375387891,0.5817,4428.7,4428.6,3.2078]
[1755375388084,1.43,4428.7,4428.6,3.2078]
[1755375388681,1.43,4428.7,4428.6,3.7821]
[1755375388988,1.43,4428.7,4428.6,3.2078]
[1755375389883,1.43,4428.7,4428.6,3.5369]
[1755375390084,1.43,4428.7,4428.6,4.3444]
[1755375390389,1.43,4428.7,4428.6,4.0453]
[1755375391492,0.8483,4429.3,4428.7,0.8075]
[1755375391694,1.43,4429.3,4429.2,1.389]
[1755375391999,0.8483,4429.2,4428.6,0.5084]
[1755375392201,1.43,4428.7,4428.6,1.389]
[1755375392591,1.1881,4428.6,4428.5,3.2078]
[1755375392791,1.43,4427.9,4427.8,1.1366]
[1755375392996,1.43,4427.9,4427.8,1.389]
[1755375393196,1.1865,4427.9,4427.8,1.389]
[1755375393502,1.43,4427.9,4427.8,1.389]
[1755375394491,0.1664,4427.9,4427.8,1.389]
[1755375394693,0.8483,4429.0,4427.8,0.5815]
[1755375394895,0.55748817,4428.9,4427.6,3.2078]
[1755375395096,0.1664,4428.7,4428.6,0.1692]
[1755375395396,1.98748817,4428.7,4428.6,1.389]
[1755375395898,1.98742699,4428.7,4428.6,0.8375]
[1755375396290,1.43,4428.7,4428.6,0.8375]
[1755375396692,0.20077232,4428.7,4428.6,1.389]
[1755375396898,0.3592,4429.1,4428.6,1.389]
[1755375397102,0.78245054,4429.0,4428.9,0.5815]
[1755375397304,1.27155054,4429.0,4428.9,1.389]
[1755375397701,0.44265054,4429.0,4428.9,1.389]
[1755375397893,3.2078,4429.6,4429.0,0.8075]
[1755375397894,0.8483,4429.3,4429.0,0.8075]
[1755375398207,1.43,4429.3,4429.2,1.389]
[1755375398501,1.14156912,4429.3,4429.2,1.389]
[1755375399092,0.78236912,4429.3,4429.2,1.389]
[1755375399292,0.4891,4429.6,4429.3,0.5084]
[1755375399601,1.43,4429.6,4429.5,1.389]
[1755375399795,1.63061209,4429.6,4429.5,1.389]
[1755375404604,1.63046822,4429.6,4429.5,1.389]
[1755375406105,0.412,4429.5,4429.4,0.1692]
[1755375406409,1.63046822,4429.5,4429.4,0.3291]
[1755375406608,1.63046822,4429.5,4429.4,0.8375]
[1755375407507,1.63046822,4429.5,4429.4,1.1366]
[1755375408011,1.63046822,4429.5,4429.4,1.389]
[1755375408508,1.43,4429.5,4429.4,1.389]
[1755375408904,1.14134585,4429.5,4429.4,1.389]
[1755375409111,0.44234585,4429.5,4429.4,1.389]
[1755375409510,0.44234448,4429.5,4429.4,1.389]
[1755375409712,1.62894448,4429.5,4429.4,1.389]
[1755375410407,1.62894448,4429.5,4429.3,3.2078]
[1755375410713,1.4431,4429.4,4429.3,3.2078]
[1755375411212,0.5764,4428.9,4428.8,3.2078]
[1755375411403,0.3662,4428.8,4428.7,0.169]
[1755375411604,1.4431,4428.8,4428.7,0.8459]
[1755375412008,1.4431,4428.8,4428.7,0.5992]
[1755375412207,1.64364529,4428.8,4428.7,0.3381]
[1755375412510,0.5764,4428.6,4428.5,0.8459]
[1755375412701,1.4431,4428.6,4428.5,1.3894]
[1755375414813,1.1974,4428.6,4428.5,1.3894]
[1755375415112,0.9426,4428.6,4428.5,1.3894]
[1755375415615,0.2565,4428.6,4428.5,1.3894]
[1755375415816,0.4167,4428.6,4428.5,1.3894]
[1755375416014,1.4431,4428.6,4428.5,1.3894]
[1755375417110,1.4431,4428.6,4428.5,1.0908]
[1755375418012,1.4431,4428.6,4428.5,1.3894]
[1755375418217,0.5764,4428.4,4428.3,3.2078]
[1755375418413,1.4431,4428.4,4428.3,23.7908]
[1755375418812,1.4431,4428.4,4428.3,23.9598]
[1755375419418,1.4431,4428.4,4428.3,24.6367]
[1755375419716,1.4431,4428.4,4428.3,24.0519]
[1755375419915,1.64666249,4428.4,4428.3,23.7908]
[1755375420315,0.3199,4427.9,4427.8,20.587]
[1755375420520,1.1974,4427.8,4427.7,25.1842]
[1755375421120,1.4431,4427.8,4427.7,25.1842]
[1755375421617,0.9426,4427.8,4427.7,25.1842]
[1755375423221,1.1974,4427.8,4427.7,25.1842]
[1755375423423,1.4431,4427.8,4427.7,25.1842]
[1755375424918,1.1974,4427.8,4427.7,25.1842]
[1755375425823,1.4431,4427.8,4427.7,25.1842]
[1755375426622,0.621,4428.4,4427.7,25.1842]
[1755375426818,1.02551751,4428.3,4428.2,0.3381]
[1755375427023,1.64651751,4428.3,4428.2,0.8459]
[1755375427214,1.64651751,4428.3,4428.2,0.5992]
[1755375427419,1.64651751,4428.3,4428.2,0.3381]
[1755375427824,1.64651751,4428.3,4428.2,21.9704]
[1755375428522,1.64651751,4428.3,4428.2,21.6718]
[1755375429824,1.64651751,4428.3,4428.2,21.9704]
[1755375430620,1.64651751,4428.3,4428.2,20.9191]
[1755375432924,1.64651751,4428.3,4428.2,21.9704]
[1755375433817,1.4431,4428.3,4428.2,21.9704]
[1755375435124,3.624,4428.8,4428.7,0.1691]
[1755375435326,4.85437929,4428.8,4428.7,1.1445]
[1755375435517,4.85437929,4428.8,4428.7,0.169]
[1755375435722,3.98767929,4428.8,4428.5,20.566]
[1755375436022,1.4431,4428.6,4428.5,21.4119]
[1755375436213,1.64657929,4428.6,4428.5,21.9554]
[1755375436420,1.64657929,4428.6,4428.5,20.9041]
[1755375436723,1.64657929,4428.6,4428.5,21.4119]
[1755375436919,1.64657929,4428.6,4428.5,21.7105]
[1755375437315,1.40087929,4428.6,4428.5,21.4494]
[1755375437520,1.64657929,4428.6,4428.5,21.7105]
[1755375437722,1.64657929,4428.6,4428.5,21.9554]
[1755375439023,1.64657929,4428.6,4428.5,20.566]
[1755375439220,1.4798,4428.4,4428.3,20.561]
[1755375439421,1.68327929,4428.4,4428.3,20.561]
[1755375439926,1.68327929,4428.4,4428.3,21.2304]
[1755375440321,1.68327929,4428.4,4428.3,21.4024]
[1755375441330,1.68327929,4428.4,4428.3,21.7007]
[1755375443422,0.20347929,4428.4,4428.3,21.9441]
[1755375443624,0.6385,4428.9,4428.3,21.1677]
[1755375443824,0.3796,4428.7,4428.3,21.1452]
[1755375444025,0.20379513,4428.6,4428.3,21.1452]
[1755375444226,0.8538,4428.6,4428.5,0.5842]
[1755375444426,1.1002,4428.6,4428.5,1.3831]
[1755375445025,1.4798,4428.6,4428.5,1.3831]
[1755375445324,1.68360815,4428.6,4428.5,1.3831]
[1755375446229,1.4798,4428.6,4428.5,1.3831]
[1755375449426,0.8849,4429.8,4428.5,0.8825]
[1755375449628,1.4798,4429.6,4429.5,0.3408]
[1755375449831,1.3518012,4429.6,4429.3,0.2983]
[1755375450026,0.5949,4429.4,4429.3,0.9677]
[1755375450228,1.68043133,4429.4,4429.3,1.1397]
[1755375451031,1.68043133,4429.4,4429.3,1.3831]
[1755375451732,0.20063133,4429.4,4429.3,1.3831]
[1755375452034,1.01413133,4429.4,4429.3,1.3831]
[1755375452230,1.17513133,4429.4,4429.3,1.3831]
[1755375452430,1.68043133,4429.4,4429.3,1.3831]
[1755375453036,1.67982563,4429.4,4429.3,1.3831]
[1755375454039,1.43342563,4429.4,4429.3,1.3831]
[1755375454338,1.17452563,4429.4,4429.3,1.3831]
[1755375454539,0.20002563,4429.4,4429.3,1.3831]
[1755375454739,3.5874,4429.9,4429.3,0.5842]
[1755375455040,1.05351695,4429.8,4429.7,0.5842]
[1755375455339,1.67951695,4429.8,4429.7,1.3831]
[1755375455639,0.5949,4429.6,4429.1,21.3479]
[1755375455936,3.2303,4429.9,4429.1,21.3479]
[1755375455937,1.4798,4429.2,4429.1,21.6887]
[1755375456532,1.4798,4429.2,4429.1,21.9321]
[1755375457433,0.6385,4429.6,4429.1,21.1332]
[1755375457639,0.9745,4429.6,4429.5,0.5842]
[1755375457840,1.67902714,4429.6,4429.5,1.3831]
[1755375458830,0.83962714,4429.6,4429.5,1.3831]
[1755375459030,1.67902714,4429.6,4429.5,0.2494]
[1755375459235,1.67902714,4429.6,4429.5,0.4182]
[1755375459436,1.67902714,4429.6,4429.5,0.8414]
[1755375459833,1.4798,4429.6,4429.5,0.8414]
[1755375460038,1.67894445,4429.6,4429.5,0.8414]
[1755375460441,1.67894445,4429.6,4429.5,1.1397]
[1755375460641,1.67894445,4429.6,4429.5,0.8414]
[1755375460836,0.7991,4429.5,4429.4,20.558]
[1755375461035,1.2209,4429.5,4429.4,20.9762]
[1755375461233,1.4798,4429.5,4429.4,21.3994]
[1755375461637,1.4798,4429.5,4429.4,21.6977]
[1755375461842,1.4798,4429.5,4429.4,21.9411]
[1755375462744,0.5949,4429.5,4429.4,21.9411]
[1755375463041,0.2608,4429.5,4429.4,25.1489]
[1755375463244,0.3796,4429.8,4429.4,25.1489]
[1755375463543,0.6385,4430.1,4429.6,0.8336]
[1755375463748,1.43277036,4430.0,4429.9,0.5842]
[1755375464041,1.67917036,4430.0,4429.9,1.3831]
[1755375466647,1.17387036,4430.0,4429.9,1.3831]
[1755375467041,1.67917036,4430.0,4429.9,1.3831]
[1755375469145,1.67917036,4430.0,4429.9,1.1397]
[1755375469946,1.67917036,4430.0,4429.9,0.8414]
[1755375471048,1.67917036,4430.0,4429.9,1.4053]
[1755375471243,1.67942934,4430.0,4429.9,1.4053]
[1755375472945,1.17412934,4430.0,4429.9,1.4053]
[1755375473146,0.46042934,4430.0,4429.9,1.4053]
[1755375473543,0.19962934,4430.0,4429.9,1.4053]
[1755375473748,0.19962934,4430.0,4429.9,4.6131]
[1755375476456,0.3978,4430.6,4430.0,0.8128]
[1755375476658,1.4927,4430.6,4430.5,1.4106]
[1755375476850,1.69397906,4430.6,4430.5,21.9616]
[1755375477451,1.69391431,4430.6,4430.5,21.9616]
[1755375481164,1.69416636,4430.6,4430.5,21.9616]
[1755375481762,0.78026636,4430.6,4430.5,21.9616]
[1755375481967,0.78026636,4430.6,4430.5,25.1694]
[1755375481968,0.20146636,4430.6,4430.5,25.1694]
[1755375482163,0.78026636,4430.6,4430.5,25.1694]
[1755375482369,0.8328,4429.8,4429.7,3.2078]
[1755375482565,1.6940961,4429.8,4429.7,23.7588]
[1755375482969,1.6940961,4429.8,4429.7,24.6056]
[1755375483169,1.6940961,4429.8,4429.7,24.9043]
[1755375483375,0.2013961,4429.8,4429.7,25.1694]
[1755375483575,0.254,4430.4,4429.7,24.3567]
[1755375483772,1.04229855,4430.3,4430.2,0.8536]
[1755375484068,1.69409855,4430.3,4430.2,21.9626]
[1755375484465,1.69409855,4430.3,4430.2,21.1405]
[1755375484663,0.78019855,4430.3,4429.8,0.8127]
[1755375484868,0.5788,4430.0,4429.9,20.57]
[1755375485374,1.4927,4430.0,4429.9,20.57]
[1755375486075,1.6941067,4430.0,4429.9,20.57]
[1755375486276,1.6941067,4430.0,4429.2,3.2078]
[1755375486277,0.0225,4429.8,4429.2,3.2078]
[1755375486572,1.4927,4429.3,4429.2,3.2078]
[1755375486773,1.4927,4429.3,4429.2,23.7818]
[1755375486973,1.4927,4429.3,4429.2,24.6286]
[1755375487474,1.4927,4429.3,4429.2,24.9273]
[1755375488172,1.4927,4429.3,4429.2,24.3703]
[1755375488475,1.4927,4429.3,4429.2,24.6286]
[1755375489081,1.4927,4429.3,4429.2,24.9273]
[1755375489378,1.4927,4429.3,4429.2,25.1924]
[1755375489770,1.4927,4429.3,4429.2,24.6286]
[1755375489976,1.4927,4429.3,4429.2,25.1924]
[1755375490871,1.4927,4429.3,4429.2,24.1146]
[1755375491272,1.4927,4429.3,4429.2,24.6286]
[1755375492378,1.4927,4429.3,4429.2,24.1146]
[1755375492978,1.4927,4429.3,4429.2,24.6286]
[1755375493380,1.4927,4429.3,4429.2,24.9273]
[1755375494779,1.4927,4429.3,4429.2,25.1924]
[1755375497483,0.9766,4429.3,4429.2,25.1924]
[1755375497785,1.2306,4429.3,4429.2,25.1924]
[1755375497985,1.4927,4429.3,4429.2,25.1924]
[1755375505280,0.9766,4429.3,4429.2,25.1924]
[1755375505586,1.2265,4429.3,4429.2,25.1924]
[1755375507486,1.4794,4429.3,4429.2,25.1924]
[1755375510389,0.2499,4430.1,4429.3,0.2596]
[1755375510592,1.4023732,4430.0,4429.9,1.3894]
[1755375510793,1.6552732,4430.0,4429.9,21.9364]
[1755375512087,1.4023732,4430.0,4429.9,21.9364]
[1755375512889,0.7679732,4430.0,4429.9,21.9364]
[1755375513092,0.4456732,4430.0,4429.9,21.9364]
[1755375513496,0.3845,4430.5,4429.9,21.9364]
[1755375513792,1.40245587,4430.4,4430.3,0.5772]
[1755375513989,1.40245587,4430.4,4430.3,21.9354]
[1755375514698,1.65535587,4430.4,4430.3,21.9354]
[1755375514997,1.65535002,4430.4,4430.3,21.9354]
[1755375515197,1.40245002,4430.4,4430.3,20.546]
[1755375515589,1.65535002,4430.4,4430.3,20.546]
[1755375515994,1.65535002,4430.4,4430.3,20.9748]
[1755375516397,1.65535002,4430.4,4430.3,20.7152]
[1755375516897,1.65535002,4430.4,4430.3,20.546]
[1755375518592,1.65535002,4430.4,4429.7,3.2078]
[1755375518593,0.1605,4429.8,4429.7,3.9269]
[1755375518796,0.1605,4429.8,4429.7,24.6411]
[1755375518797,1.4528,4429.8,4429.7,24.6411]
[1755375518998,0.0225,4430.6,4429.7,24.33]
[1755375519198,1.4528,4429.9,4429.8,1.3894]
[1755375519500,1.4528,4429.9,4429.8,1.1479]
[1755375519700,1.4528,4429.9,4429.8,1.3894]
[1755375519899,1.1999,4429.9,4429.8,1.3894]
[1755375520205,1.4528,4429.9,4429.8,1.3894]
[1755375520697,0.3845,4430.6,4429.9,0.8122]
[1755375520904,1.27081847,4430.5,4430.4,0.3357]
[1755375521098,1.65531847,4430.5,4430.4,20.8797]
[1755375521302,1.65531847,4430.5,4430.4,20.544]
[1755375523291,0.76801847,4430.5,4430.1,20.548]
[1755375523495,1.4528,4430.2,4430.1,21.3966]
[1755375523701,1.15251847,4430.2,4430.1,21.9374]
[1755375523904,0.44571847,4430.2,4430.1,21.9374]
[1755375524703,0.99201847,4430.2,4430.1,21.9374]
[1755375524890,0.7895,4430.2,4430.1,21.9374]
[1755375525502,0.95,4430.2,4430.1,21.9374]
[1755375525697,1.40246773,4430.2,4430.1,21.9374]
[1755375525897,1.65536773,4430.2,4430.1,21.9374]
[1755375526692,1.65538064,4430.2,4430.1,21.9374]
[1755375527097,0.20258064,4430.2,4430.1,21.9374]
[1755375527296,1.65538064,4430.2,4430.1,21.137]
[1755375527497,1.65538064,4430.2,4430.1,20.8837]
[1755375528402,1.65538064,4430.2,4430.1,21.6959]
[1755375528806,1.65538064,4430.2,4430.1,21.9374]
[1755375529005,1.65538064,4430.2,4430.1,20.8837]
[1755375529200,1.65538064,4430.2,4430.1,20.548]
[1755375531499,1.65538064,4430.2,4430.1,21.692]
[1755375531700,0.20258064,4430.2,4430.1,21.9352]
[1755375533097,0.2533,4431.1,4430.9,0.1718]
[1755375533409,3.2078,4431.4,4431.0,1.3872]
[1755375533601,3.2078,4431.4,4430.2,3.2078]
[1755375533602,0.20268462,4431.3,4431.2,0.5825]
[1755375533802,1.00668462,4431.3,4431.2,1.3872]
[1755375534102,0.20268462,4431.3,4431.2,1.3872]
[1755375537407,1.18018462,4431.3,4431.2,1.0886]
[1755375537711,0.336,4430.8,4430.7,3.2078]
[1755375538008,0.599,4430.3,4430.2,3.5471]
[1755375538213,1.4833,4430.3,4430.2,24.8978]
[1755375540207,1.68645057,4430.3,4430.1,20.553]
[1755375540415,1.4833,4429.8,4429.7,3.2078]
[1755375540615,1.68647338,4429.8,4429.7,3.2078]
[1755375540921,1.3098,4429.7,4429.6,20.557]
[1755375541109,0.80217338,4429.7,4429.1,3.2078]
[1755375541306,1.4833,4429.4,4429.3,0.8454]
[1755375541510,1.68640162,4429.4,4429.3,0.5967]
[1755375542419,0.80192689,4429.4,4429.2,20.556]
[1755375542610,1.68622689,4429.3,4429.2,20.556]
[1755375543014,1.68622689,4429.3,4429.2,20.8953]
[1755375543214,1.68622689,4429.3,4429.2,21.1527]
[1755375544311,1.4833,4429.3,4429.2,21.4014]
[1755375544912,1.4833,4429.3,4429.2,21.9432]
[1755375545413,0.336,4429.4,4429.3,1.3872]
[1755375545609,1.43284966,4429.4,4429.3,0.5825]
[1755375545813,1.68614966,4429.4,4429.3,0.5825]
[1755375546116,1.68614966,4429.4,4429.3,1.3872]
[1755375546320,0.20284966,4429.4,4429.3,1.3872]
[1755375546516,0.631,4429.8,4429.4,0.8047]
[1755375546816,1.4833,4429.8,4429.7,1.3872]
[1755375547016,1.68610014,4429.8,4429.7,1.3872]
[1755375547216,0.20280014,4429.8,4429.7,1.3872]
[1755375547416,1.00680014,4429.8,4429.7,1.3872]
[1755375547616,1.18030014,4429.8,4429.7,1.3872]
[1755375548310,1.43280014,4429.8,4429.7,1.3872]
[1755375548517,1.18030014,4429.8,4429.7,1.3872]
[1755375548718,0.20280014,4429.8,4429.7,1.3872]
[1755375549118,0.84430014,4429.8,4429.7,1.3872]
[1755375549313,1.00680014,4429.8,4429.7,1.3872]
[1755375550516,0.46580014,4429.8,4429.7,1.3872]
[1755375550716,0.20280014,4429.8,4429.7,1.3872]
[1755375550913,0.8843,4430.1,4429.7,1.3872]
[1755375551119,3.2078,4430.4,4429.5,20.554]
[1755375551120,1.43281933,4430.0,4429.9,0.5825]
[1755375551321,1.68611933,4430.0,4429.9,1.3872]
[1755375557824,0.88081933,4430.0,4429.9,1.3872]
[1755375558128,1.43281933,4430.0,4429.9,1.3872]
[1755375558324,1.68591004,4430.0,4429.9,1.3872]
[1755375558521,0.1625,4429.7,4429.6,0.5061]
[1755375558725,1.4488,4429.7,4429.6,1.3872]
[1755375559528,1.2094,4429.7,4429.6,1.3872]
[1755375561027,1.4488,4429.7,4429.6,1.3872]
[1755375561720,0.599,4429.7,4429.6,1.3872]
[1755375563331,1.4423,4430.8,4430.7,0.323]
[1755375563632,1.64498374,4430.8,4430.7,1.1136]
[1755375564034,1.64498374,4430.8,4430.7,0.8151]
[1755375566430,1.64498374,4430.8,4430.7,1.1136]
[1755375568234,1.64498374,4430.8,4430.7,0.8151]
[1755375568635,1.64498374,4430.8,4430.7,1.1136]
[1755375571036,1.64498374,4430.8,4430.7,1.3734]
[1755375574448,1.64498374,4430.8,4430.7,1.1136]
[1755375576853,1.64498374,4430.8,4430.7,1.3734]
[1755375577547,0.20268374,4430.8,4430.7,1.3734]
[1755375577954,1.64498374,4430.8,4430.7,1.3734]
[1755375582751,0.68868374,4430.8,4430.3,0.5828]
[1755375582952,0.20268374,4430.7,4430.6,1.3741]
[1755375583149,0.20268374,4430.9,4430.6,1.3741]
[1755375583356,0.20268374,4430.9,4430.8,0.323]
[1755375583656,0.20268374,4430.9,4430.8,1.3741]
[1755375584152,0.20268374,4430.9,4430.8,0.5828]
[1755375584851,0.20268374,4430.9,4430.8,1.3741]
[1755375585653,1.2029,4431.6,4431.5,1.3741]
[1755375585853,1.63837381,4431.6,4431.5,1.3741]
[1755375587050,0.78857381,4431.6,4431.5,1.3741]
[1755375587354,0.19607381,4431.6,4431.5,1.3741]
[1755375587658,0.19599651,4431.6,4431.5,1.3741]
[1755375588158,1.0563,4432.2,4432.1,0.5828]
[1755375588461,1.73826587,4432.2,4432.1,1.3741]
[1755375590161,1.73826587,4432.2,4432.1,0.323]
[1755375590363,1.73826587,4432.2,4432.1,1.1265]
[1755375590956,1.73826587,4432.2,4432.1,1.387]
[1755375591158,1.26106587,4432.2,4432.1,1.387]
[1755375591459,1.74706587,4432.2,4432.1,1.387]
[1755375592864,0.66856587,4432.2,4432.1,1.387]
[1755375593163,0.92796587,4432.2,4432.1,1.387]
[1755375593464,0.92778081,4432.2,4432.1,1.387]
[1755375593763,1.34348081,4432.2,4432.1,1.387]
[1755375594061,1.76178081,4432.2,4432.1,1.387]
[1755375600368,1.76178081,4432.2,4431.7,3.2078]
[1755375600664,1.466,4431.8,4431.7,3.2078]
[1755375600868,1.66178081,4431.8,4431.7,3.2078]
[1755375601061,1.66178081,4431.8,4431.7,3.5428]
[1755375601254,1.66005086,4431.8,4431.7,4.3468]
[1755375601458,1.66005086,4431.8,4431.7,1.139]
[1755375601770,0.45346212,4431.8,4431.7,1.3995]
[1755375601955,1.41745679,4431.8,4431.7,1.3995]
[1755375602160,1.66005679,4431.8,4431.7,1.3995]
[1755375605661,0.19405679,4431.8,4431.7,1.3995]
[1755375605861,3.3078,4432.2,4431.8,0.804]
[1755375605862,0.1,4432.2,4431.8,0.804]
[1755375606060,0.9043,4432.2,4432.1,1.3995]
[1755375606263,1.76019808,4432.2,4432.1,1.3995]
[1755375606968,0.98,4431.6,4431.5,4.6073]
[1755375607159,0.2426,4431.9,4431.5,4.6073]
[1755375607365,0.1,4432.2,4431.9,0.804]
[1755375607569,0.1,4432.2,4432.1,1.3995]
[1755375607862,0.29427883,4432.2,4432.1,1.3995]
[1755375608270,0.1,4432.2,4432.1,1.3995]
[1755375610867,0.29429193,4432.2,4432.1,1.3995]
[1755375611271,0.66689193,4432.2,4432.1,1.3995]
[1755375611469,1.10199193,4432.2,4432.1,1.3995]
[1755375611668,0.55369193,4432.2,4432.1,1.3995]
[1755375612074,0.92629193,4432.2,4432.1,1.3995]
[1755375612262,1.27429193,4432.2,4432.1,1.3995]
[1755375612572,1.76029193,4432.2,4432.1,1.3995]
[1755375613869,1.566,4432.2,4432.1,1.3995]
[1755375614270,1.1469,4432.2,4432.1,1.3995]
[1755375614770,1.566,4432.2,4432.1,1.3995]
[1755375616276,1.76053396,4432.2,4432.1,1.3995]
[1755375616774,0.55393396,4432.2,4432.1,1.3995]
[1755375616973,0.3594,4432.2,4432.1,1.3995]
[1755375617477,0.29454653,4432.2,4432.1,1.3995]
[1755375617671,0.1,4432.2,4432.1,1.3995]
[1755375622977,1.0843,4432.2,4432.1,1.3995]
[1755375623174,1.5731,4432.2,4432.1,1.3995]
[1755375624976,0.5731,4432.2,4432.1,1.3995]
[1755375625281,0.7511,4432.2,4432.1,1.3995]
[1755375625778,3.2078,4433.2,4432.1,1.043]
[1755375626084,0.4888,4433.0,4432.3,0.8592]
[1755375626282,0.99004645,4432.9,4432.0,3.2078]
[1755375626481,0.8411,4432.5,4432.4,1.4556]
[1755375626680,0.248,4433.0,4432.4,1.4556]
[1755375626885,0.248,4433.0,4432.3,20.529]
[1755375626886,1.03617768,4432.9,4432.8,0.5964]
[1755375627186,1.42737768,4432.9,4432.8,1.4556]
[1755375627481,1.66817768,4432.9,4432.8,1.4556]
[1755375627683,0.78817768,4432.9,4432.8,1.0897]
[1755375627881,1.42737768,4432.9,4432.8,1.4556]
[1755375628481,0.19507768,4432.9,4432.8,1.4556]
[1755375629079,0.58627768,4432.9,4432.8,1.4556]
[1755375629584,1.42737768,4432.9,4432.8,1.4556]
[1755375630484,0.19507768,4432.9,4432.8,1.4556]
[1755375630677,3.2078,4433.8,4432.8,0.5964]
[1755375630878,1.2323,4433.2,4433.1,1.4556]
[1755375631176,1.42729132,4433.2,4433.1,1.4556]
[1755375631580,0.88,4433.1,4432.8,20.528]
[1755375631883,1.4731,4432.9,4432.8,20.775]
[1755375632683,0.5931,4432.6,4432.2,0.247]
[1755375632880,0.83423999,4432.5,4432.3,0.247]
[1755375633082,1.4731,4432.4,4432.3,0.6589]
[1755375633482,1.4731,4432.4,4432.3,1.4556]
[1755375635173,0.4169,4432.4,4432.3,1.4556]
[1755375635686,1.2323,4432.4,4432.3,1.4556]
[1755375636189,1.66829977,4432.4,4432.3,21.3694]
[1755375636386,1.66830633,4432.4,4432.3,21.6157]
[1755375636584,1.66830633,4432.4,4432.3,21.9816]
[1755375636785,1.668307,4432.4,4432.3,21.9816]
[1755375637588,1.427507,4432.4,4432.3,21.9816]
[1755375639384,1.42753443,4432.4,4432.3,21.9816]
[1755375639690,1.66833443,4432.4,4432.3,21.9816]
[1755375643495,1.42753443,4432.4,4432.3,21.9816]
[1755375643980,0.6392,4432.8,4432.3,21.9816]
[1755375644184,0.2408,4433.0,4432.6,0.5964]
[1755375644185,0.83445153,4432.7,4432.6,0.5964]
[1755375644385,0.83445153,4432.7,4432.6,21.9816]
[1755375645586,0.19525153,4432.7,4432.6,21.9816]
[1755375645991,0.3912,4433.4,4433.1,0.5964]
[1755375646182,0.82900919,4433.3,4433.2,21.9816]
[1755375646581,1.07700919,4433.3,4433.2,21.9816]
[1755375646781,0.82900919,4433.3,4433.2,21.9816]
[1755375647092,0.19520919,4433.3,4433.2,22.0041]
[1755375647290,3.8009,4434.2,4434.1,0.5964]
[1755375647498,0.58629758,4434.2,4434.1,21.9806]
[1755375647791,1.17939758,4434.2,4434.1,21.9806]
[1755375647994,1.42739758,4434.2,4434.1,21.9806]
[1755375648586,1.66802057,4434.2,4434.1,21.9806]
[1755375649187,0.19492057,4434.2,4434.1,21.9806]
[1755375649392,1.03472057,4434.2,4434.1,20.524]
[1755375649589,1.65502057,4434.2,4434.1,20.7836]
[1755375650294,1.65502057,4434.2,4434.1,20.9602]
[1755375650593,1.65502057,4434.2,4434.1,22.0013]
[1755375651196,1.4601,4434.2,4434.1,20.524]
[1755375651499,1.4601,4434.2,4434.1,20.9602]
[1755375651688,1.4601,4434.2,4434.1,0.4362]
[1755375651883,1.4601,4434.2,4434.1,20.9582]
[1755375652096,1.2189,4434.2,4434.1,21.9993]
[1755375652396,1.2189,4434.2,4434.1,1.4773]
[1755375652697,1.2189,4434.2,4434.1,21.9993]
[1755375653290,0.5986,4434.2,4434.1,21.9993]
[1755375653490,0.423,4434.2,4434.1,21.9993]
[1755375653688,0.9739,4434.6,4434.5,0.6057]